Cogmind - Beta 13 @@@ ROGUE MODE // 2024.03.18 @ 21:18:35 Player: Waste Result: Destroyed self with Grenade Launcher Performance ------------- Evolutions (0) 0 Regions Visited (2) 400 Robots Destroyed (13) 65 Value Destroyed (364) 364 Prototype IDs (0) 0 Alien Tech Used (0) 0 Bonus (0) 0 TOTAL SCORE: 829 Bonus ------- None Cogmind --------- Core Integrity 0/250 Matter 174/300 Energy 100/100 System Corruption 0% Temperature Cool (9) Movement Rolling (90) Location -10/Subcaves Parts ------- > --- POWER (1) -------- (None) > --- PROPULSION (2) --- Wheel Compact Wheel > --- UTILITY (2) ------ (None) > --- WEAPON (2) ------- Grenade Launcher > --- INVENTORY (5) ---- Light Ion Engine Huge Storage Unit Heavy EM Pulse Gun Grenade Launcher Peak State ------------ > --- POWER ------------ Light Ion Engine > --- PROPULSION ------- Wheel Wheel > --- UTILITY ---------- Huge Storage Unit Medium Armor Plating > --- WEAPON ----------- Heavy EM Pulse Gun Heavy EM Pulse Gun > --- INVENTORY -------- Ion Engine Light Ion Engine Light Treads Light Treads Aluminum Leg Aluminum Leg Compact Wheel Heat Sink Small Storage Unit Medium Armor Plating Medium Armor Plating Medium Armor Plating EM Pulse Gun Heavy EM Pulse Gun Heavy EM Pulse Gun Beam Cannon Grenade Launcher Grenade Launcher [Rating: 12] Favorites ----------- Power Light Ion Engine Engine Light Ion Engine Propulsion Wheel Leg Aluminum Leg Wheel Wheel Utility Huge Storage Unit Device Heat Sink Storage Huge Storage Unit Protection Medium Armor Plating Weapon Heavy EM Pulse Gun Energy Gun Heavy EM Pulse Gun Ballistic Gun Assault Rifle Launcher Grenade Launcher Build | -11 -10 -10 ------- Run | Yrd Mat Sub Slots Evolved . | . . . Power . | . . . Propulsion . | . . . Utility . | . . . Weapon . | . . . Parts Attached 14 | . 10 4 Power . | . . . Engine . | . . . Core . | . . . Reactor . | . . . Propulsion 3 | . 3 . Treads . | . . . Leg . | . . . Wheel 3 | . 3 . Hover . | . . . Flight . | . . . Utility 4 | . 3 1 Device 1 | . 1 . Storage 1 | . 1 . Processor . | . . . Hackware . | . . . Protection 2 | . 1 1 Artifact . | . . . Weapon 7 | . 4 3 Energy Gun 4 | . 3 1 Energy Cannon . | . . . Ballistic Gun . | . . . Ballistic Cannon . | . . . Launcher 3 | . 1 2 Special Weapon . | . . . Impact Weapon . | . . . Slashing Weapon . | . . . Piercing Weapon . | . . . Special Melee Weapon . | . . . Unidentified Prototypes . | . . . Parts Lost 5 | . 1 4 Power 1 | . . 1 Propulsion 1 | . 1 . Utility 1 | . . 1 Weapon 2 | . . 2 Highest Loss Streak 4 | . 1 4 To Critical Strikes . | . . . Average Slot Usage (%) 94 | . 99 87 Engine 13 | . 14 13 Wheel 27 | . 27 28 Device 2 | . 3 . Storage 9 | . 14 3 Protection 11 | . 9 13 Energy Gun 21 | . 24 19 Ballistic Gun 2 | . 3 . Launcher 3 | . . 8 Naked Turns . | . . . Heaviest Build 96 | 11 96 96 Greatest Support 26 | 20 26 26 Greatest Overweight (x) 4 | . 4 3 Average Overweight (x) 2 | . 3 1 Largest Inventory Capacity 25 | . 25 25 Average Capacity 18 | . 24 10 Most Carried 18 | . 18 18 Average Carried 12 | . 15 8 Final Capacity 25 | 8 25 5 Final Carried 17 | 6 17 4 Class Distribution -------------------- 100% | Mutant Dominant Class ---------------- Mutant | -10/Materials Mutant | -10/Subcaves Resources | -11 -10 -10 ----------- Run | Yrd Mat Sub Matter Collected 406 | 200 92 114 Remotely . | . . . Salvage Created 522 | . 287 235 Parts 25 | . 10 15 Haulers Intercepted 1 | . 1 . Recyclers Shooed . | . . . Parts Field Recycled . | . . . Retrieved Matter . | . . . Parts Self-Destructed 8 | . . 8 Prevented . | . . . Kills | -11 -10 -10 ------- Run | Yrd Mat Sub Combat Hostiles Destroyed 12 | . 5 7 Guns 3 | . 3 . AOE 9 | . 2 7 Classes Destroyed 5 | . 2 3 Hauler 1 | . 1 . Swarmer 4 | . . 4 Grunt 6 | . 5 1 Sentry 1 | . . 1 Subdweller 1 | . . 1 Best Kill Streak 6 | . 3 6 Combat Bots Only 6 | . 2 6 Max Kills in Single Turn 2 | . 1 2 Gunslinging . | . . . Exploded 2 | . 1 2 Melee . | . . . Uniques/NPCs Destroyed . | . . . Combat | -11 -10 -10 -------- Run | Yrd Mat Sub Hostile Shots Fired 54 | . 21 33 Missed 19 | . 5 14 Damage Taken 809 | . 237 572 Core 271 | . 34 237 Absorbed by Shields . | . . . Core Remaining (%) 100 | 100 . . Volleys Fired 49 | . 17 32 Largest 2 | . 2 2 Hottest 90 | . 90 90 Shots Fired 78 | . 32 46 Gun 58 | . 30 28 Cannon . | . . . Launcher 20 | . 2 18 Special . | . . . Kinetic 4 | . 4 . Thermal 4 | . 4 . Explosive 20 | . 2 18 Electromagnetic 50 | . 22 28 Robot Hit Streak 19 | . 4 19 Robot Miss Streak 3 | . 3 1 Penetration Max . | . . . Secondary Targets . | . . . Shots Hit Robots 51 | . 19 32 Core Hits 22 | . 8 14 Critical Kills . | . . . Critical Parts Destroyed . | . . . Critical Strikes . | . . . Melee Attacks . | . . . Impact . | . . . Slashing . | . . . Piercing . | . . . Sneak Attacks . | . . . Combat Hostiles . | . . . Follow-up Attacks . | . . . Damage Inflicted 1321 | . 411 910 Guns 627 | . 298 329 Cannons . | . . . Explosions 694 | . 113 581 Melee . | . . . Ramming . | . . . Kinetic 51 | . 51 . Thermal 123 | . 123 . Explosive 581 | . . 581 Electromagnetic 566 | . 237 329 Impact . | . . . Slashing . | . . . Piercing . | . . . Highest Corruption . | . . . Average Corruption . | . . . Corruption Purged . | . . . Corruption Blocked . | . . . Overload Shots . | . . . Overflow Damage 38 | . 18 20 Projectiles . | . . . Explosions 38 | . 18 20 Melee . | . . . Knockbacks . | . . . Impact . | . . . Kinetic . | . . . Secondary . | . . . Self-Inflicted Damage 164 | . 40 124 Shots 6 | . 2 4 Rammed . | . . . Targets Rammed . | . . . Kicked . | . . . Crushed . | . . . Highest Temperature 201 | . 201 2 Average Temperature 97 | . 98 2 Received Heat Transfer 195 | . 108 87 Siege Activations . | . . . Robots Corrupted 1 | . . 1 Combat Hostiles 1 | . . 1 Parts Fried 7 | . 2 5 Impact Corruptions . | . . . Robots Melted . | . . . Combat Hostiles . | . . . Parts Melted . | . . . Heat Transferred 175 | . 175 . Parts Sabotaged . | . . . Parts Stolen . | . . . Parts Stripped . | . . . Power Chain Reactions 2 | . 2 . Alert | -11 -10 -10 ------- Run | Yrd Mat Sub Peak Influence 153 | . 153 . Initial . | . . . Average 43 | . 43 . Maximum Alert Level . | . . . Low Security (%) 100 | . 100 . Level 1 . | . . . Level 2 . | . . . Level 3 . | . . . Level 4 . | . . . Level 5 . | . . . High Security . | . . . Max Security . | . . . Squads Dispatched 1 | . 1 . Investigation 1 | . 1 . Extermination . | . . . Reinforcement . | . . . Assault . | . . . Garrison . | . . . Intercept . | . . . Searches Triggered . | . . . Construction Impeded . | . . . Haulers Reinforced . | . . . Active Scanning Responses . | . . . Cargo Convoy Interrupts . | . . . Stealth | -11 -10 -10 --------- Run | Yrd Mat Sub Distress Signals . | . . . Communications Jammed . | . . . Distress Signals . | . . . Times Spotted 18 | . 8 10 Peak Tracking Total 5 | . 2 5 Tactical Retreats 2 | . . 2 Traps | -11 -10 -10 ------- Run | Yrd Mat Sub Traps Triggered 2 | . 1 1 Indirectly . | . . . Trap Hack Attempts . | . . . Triggered . | . . . Disarmed . | . . . Reprogrammed . | . . . Reused . | . . . Traps Extracted . | . . . Installed . | . . . Triggered . | . . . Machines | -11 -10 -10 ---------- Run | Yrd Mat Sub Machines Disabled 2 | . 2 . Max in Single Turn 1 | . 1 . Machines Repaired . | . . . Machines Dismantled . | . . . Machines Sabotaged . | . . . Overloaded Fab Kills . | . . . Hacking | -11 -10 -10 --------- Run | Yrd Mat Sub Machines Accessed 1 | . 1 . Terminals 1 | . 1 . Fabricators . | . . . Repair Stations . | . . . Recycling Units . | . . . Scanalyzers . | . . . Garrison Access . | . . . Total Hacks 2 | . 2 . Successful . | . . . Failed 2 | . 2 . Catastrophic 1 | . 1 . Database Lockouts . | . . . Manual 2 | . 2 . Terminals 2 | . 2 . Fabricators . | . . . Repair Stations . | . . . Recycling Units . | . . . Scanalyzers . | . . . Garrison Access . | . . . Terminal Hacks . | . . . Fabricator Hacks . | . . . Repair Station Hacks . | . . . Recycling Unit Hacks . | . . . Scanalyzer . | . . . Garrison Access Hacks . | . . . Unauthorized Hacks . | . . . Terminals . | . . . Fabricators . | . . . Repair Stations . | . . . Recycling Units . | . . . Scanalyzers . | . . . Garrison Access . | . . . Data Cores Recovered . | . . . Used . | . . . Hacking Detections 1 | . 1 . Full Trace Events . | . . . Feedback Events . | . . . Feedback Blocked . | . . . Robot Schematics Acquired . | . . . Robots Built . | . . . Authchips . | . . . Time . | . . . Total Robot Build Rating . | . . . Part Schematics Acquired . | . . . Parts Built . | . . . Authchips . | . . . Time . | . . . Total Part Build Rating . | . . . Parts Repaired . | . . . Time . | . . . Parts Recycled . | . . . Recycled Matter . | . . . Retrieved Matter . | . . . Retrieved Components . | . . . Parts Scanalyzed . | . . . Part Schematics Acquired . | . . . Parts Damaged . | . . . Bothacking | -11 -10 -10 ------------ Run | Yrd Mat Sub Used RIF Installer . | . . . Robots Hacked . | . . . Non-combat . | . . . Combat . | . . . Robot Hacks Applied . | . . . Relay Couplers Released . | . . . Fabnet Peak Effective % . | . . . Robots Rewired . | . . . Allies Hacked . | . . . Hacks Repelled . | . . . Allies | -11 -10 -10 -------- Run | Yrd Mat Sub Total Allies . | . . . Largest Group . | . . . Highest-Rated Group . | . . . Highest-Rated Ally . | . . . Total Orders . | . . . Ally Attacks . | . . . Total Damage . | . . . Kills . | . . . Allies Corrupted . | . . . Allies Melted . | . . . Intel | -11 -10 -10 ------- Run | Yrd Mat Sub Robot Analysis Total . | . . . Derelict Logs Recovered 1 | . . 1 Drone Launches . | . . . Drone Recoveries . | . . . Exploration | -11 -10 -10 ------------- Run | Yrd Mat Sub Turns Passed 1439 | . 845 594 Spaces Moved 749 | 1 294 454 Core . | . . . Treads . | . . . Legs 12 | 1 11 . Wheels 737 | . 283 454 Hover . | . . . Flight . | . . . Fastest Speed 90 | 120 120 90 Average Speed 121 | 120 137 110 Slowest Speed 140 | 120 140 135 Overloaded Moves . | . . . Propulsion Burnouts . | . . . Robots Hopped . | . . . Cave-ins Triggered . | . . . Exploration Rate (%) 26 | 2 39 38 Regions Visited 2 Branch Regions 1 Pre-discovered Areas 1 | . . 1 Known Exits Taken . | . . . Unknown Exits Taken 2 | 1 1 . Scrap Searched . | . . . Spaces Dug 3 | . 3 . Terrain Destroyed 91 | . 17 74 Melee . | . . . Projectile . | . . . AOE 91 | . 17 74 Terrain Rammed . | . . . Walls Destroyed . | . . . Machines Disabled . | . . . Actions | -11 -10 -10 --------- Run | Yrd Mat Sub Total 1200 | . 699 501 Wait 367 | . 365 2 Move 747 | . 293 454 Hop . | . . . Pick Up 14 | . 11 3 Fast Attach 5 | . 4 1 Attach 2 | . 1 1 Detach 1 | . 1 . Swap 7 | . 5 2 Drop 6 | . 2 4 Fire 49 | . 17 32 Melee . | . . . Ram . | . . . Kick . | . . . Crush . | . . . Escape Stasis . | . . . Rewire . | . . . Trap . | . . . Miscellaneous 2 | . . 2 Route ------- -11/Scrapyard -10/Materials (discovered 3 exits: [*Mat] / [*Min] / [*Sub]) -10/Subcaves History --------- Turn | Location | Event 1 | -11/Scrapyard | Discovered new exit (range 0) 1 | -11/Scrapyard | Entered Materials 219 | -10/Materials | Discovered new exit (range 9) 317 | -10/Materials | Build established: Mutant 493 | -10/Materials | Discovered new exit (range 11) 829 | -10/Materials | Discovered new exit (range 6) 846 | -10/Materials | Entered Subcaves 852 | -10/Subcaves | Shifting Twisted Machinery released Sub. Beam Cannon 867 | -10/Subcaves | Shifting Twisted Machinery released Sub. Laser 1076 | -10/Subcaves | Shifting Twisted Machinery released Sub. Beam Cannon 1077 | -10/Subcaves | Shifting Twisted Machinery released Scrap Shield 1215 | -10/Subcaves | A swath of the cavern ceiling suddenly collapsed 1428 | -10/Subcaves | Ambushed by Subdweller buried in earth 1430 | -10/Subcaves | Core integrity fell below 50% 1439 | -10/Subcaves | Core integrity fell below 20% 1440 | -10/Subcaves | Destroyed self with Grenade Launcher Last Messages --------------- 01143_ S-10 Pest springs to life. 01147_ Lgt. Assault Rifle fries itself beyond repair. 01154_ Destroyed Flight Unit. 01154_ S-10 Pest destroyed. 01156_ Destroyed Flight Unit. 01156_ S-10 Pest destroyed. A swath of the cavern ceiling suddenly collapses. 01277_ Triggered Piercing Trap. 01277_ Spikes shoot up from the floor. 01277_ Critical hit (Impale). 01382_ Acquired 33 matter. 01388_ Acquired 20 matter. 01395_ Acquired 11 matter. 01423_ Scrap Shield destroyed. 01428_ Hvy. EM Pulse Gun destroyed. 01429_ C0-V9S(R): "ARGHSUB!" 01429_ Lgt. Ion Engine destroyed. 01438_ 3S-75J(R) destroyed. 01439_ The unstable cave ceiling collapses. 01439_ Ion Engine crushed. Map ----- +----------------------------------------------------+ | ???????????????????????????????????????????????? | | ???????????????????????????????????????????????? | | ???????????????????????????????????????????????? | | ???????????????????????????????????????????????? | | ???????????????????????????????????????????????? | | ???????????????????????????????????????????????? | | ???????????????????????????????????????????????? | | ???????????????????????????????????????????????? | | ???????????????????????????????????????????????? | | ???????????????????????????????????????????????? | | ???????????????????????????????????????????????? | | ???????????????????????????????????????????????? | | ????????????????????????????????? ???????????? | | ???????????????????????????????? ?? ??????? | | ???????????????????????????????? #?? ????? | | ???????????????????????????????? ### #????? | | ????????????????????????????????# #????? | | ???????????????##""?????????????# ##???? | | ???????????????# ""???????????## #???? | | ???????????????# ""??????????## #???? | | ???????????????# "" ?#####??## ????? | | ???????????????? " ;## ## # ??????? | | ?????????????????#" ;"#???????? | | ?????????????????# ;;#???????? | | ?????????????????# R ##???????? | | ????????????????# ##; @ #% #???????? | | ??????????????????#;; #???????? | | ??????????????????# #??????### | | ??????????????????## #???### # | | ??????????????????# #?### | | ??????????????????# ### ### #?? | | ??????????????????# ### ## ### | | ?????????????????## ## ### ## | | ????????????????## #?# ### # | | ???????????????## ##?## ##?# ## # | | ??????????????## ###???####??# ## ### # | | ??????????????# #####???????# ###### | | ??????????????# #???????# #?## | | ??????????????## ## #???????## ##?# | | ???????????????####?# #????????## #??# | | ????????????????????## #?????????###??# | | ?????????????????????## ##??????????????# | | ???????????????????????####???????????????# | | ??????????????????????????????????????????# | | ??????????????????????????????????????????# # | | ?????????????????????????????????????????## # | | ?????????????????????????????????????????# # | | ?????????????????????????????????????????## | | ??????????????????????????????????????????# | | ??????????????????????????????????????????## | +----------------------------------------------------+ Best States ------------- Heat Dissipation 35 Energy Generation 10 Energy Capacity 125 Matter Stores 300 Matter Capacity 300 Sight Range 16 Terrain Scan Density 10 Armor Coverage 800 Evasion (%) 55 Item Schematics ----------------- None Robot Schematics ------------------ None Fabricated ------------ Nothing Alien Tech Used ----------------- None Achievements -------------- None Challenges ------------ None Game ------ Seed PlasmaHypervelocityOptics Manual? 0 Play Time 00:10:57 Cumulative 165.5 hours Start 2024.03.18 @ 19:55:09 End 2024.03.18 @ 21:18:35 Sessions 3 Manual Loads 0 Difficulty Rogue Special Mode None Game No. 231 Rogue 231 Adventurer 0 Explorer 0 Win Type - Total 3 Types 2/0/0/1/0/0/0/0/0 Lore% 63 Gallery% 72 Achievement% 65 Wizard Run 0 Options --------- Layout 0 ASCII 0 Keyboard 0 Movement Numpad Keybinds 0 Fullscreen 1 Font 18/SmallcapsGlow Map View 76x50 Zoom Use 0% Tactical HUD 1 Map Filters NONE Filters NONE Steam 1 RUN: 6697825b-8a69-4bba-87dc-2b7509d61df2